[Event "Early Titled Tuesday Blitz | February 8 2022"]
[White "Gaehwiler, Gabriel"]
[Black "Carre, Sylvain"]
[WhiteFideId "1314530"]
[BlackFideId "642118"]
[WhiteElo "2383"]
[BlackElo "2105"]
[Result "1-0"]
[Round "02"]
[TimeControl "180+1"]
[Date "2022.02.08"]
[WhiteClock "0:01:27"]
[BlackClock "0:00:08"]

1. Nf3 {[%clk 0:03:00]}  d5 {[%clk 0:02:58]} 2. c4 {[%clk 0:03:01]}  d4 {[%clk 0:02:57]} 3. g3 {[%clk 0:03:02]}  Nc6 {[%clk 0:02:56]} 4. d3 {[%clk 0:03:03]}  e5 {[%clk 0:02:56]} 5. Bg2 {[%clk 0:03:04]}  Bb4+ {[%clk 0:02:56]} 6. Nfd2 {[%clk 0:03:03]}  a5 {[%clk 0:02:56]} 7. O-O {[%clk 0:03:03]}  Nf6 {[%clk 0:02:55]} 8. b3 {[%clk 0:03:03]}  O-O {[%clk 0:02:48]} 9. a3 {[%clk 0:03:02]}  Be7 {[%clk 0:02:46]} 10. Bb2 {[%clk 0:03:02]}  Re8 {[%clk 0:02:47]} 11. Qc2 {[%clk 0:03:02]}  Bf8 {[%clk 0:02:38]} 12. Ne4 {[%clk 0:02:55]}  Nxe4 {[%clk 0:02:35]} 13. Bxe4 {[%clk 0:02:56]}  Bh3 {[%clk 0:02:28]} 14. Rc1 {[%clk 0:02:55]}  f5 {[%clk 0:02:21]} 15. Bd5+ {[%clk 0:02:55]}  Kh8 {[%clk 0:02:21]} 16. Nd2 {[%clk 0:02:55]}  Rb8 {[%clk 0:01:33]} 17. Re1 {[%clk 0:02:49]}  Ne7 {[%clk 0:01:32]} 18. Bg2 {[%clk 0:02:50]}  Bxg2 {[%clk 0:01:32]} 19. Kxg2 {[%clk 0:02:50]}  Ng6 {[%clk 0:01:28]} 20. h4 {[%clk 0:02:47]}  c5 {[%clk 0:01:10]} 21. Rh1 {[%clk 0:02:46]}  Qd6 {[%clk 0:01:03]} 22. f3 {[%clk 0:02:43]}  Qc6 {[%clk 0:00:58]} 23. Rag1 {[%clk 0:02:39]}  Ne7 {[%clk 0:00:57]} 24. Kf2 {[%clk 0:02:38]}  Ng8 {[%clk 0:00:58]} 25. g4 {[%clk 0:02:38]}  fxg4 {[%clk 0:00:51]} 26. Rxg4 {[%clk 0:02:35]}  Nf6 {[%clk 0:00:51]} 27. Rg5 {[%clk 0:02:34]}  h6 {[%clk 0:00:47]} 28. Rg2 {[%clk 0:02:34]}  Nh5 {[%clk 0:00:47]} 29. Ne4 {[%clk 0:02:34]}  Nf4 {[%clk 0:00:47]} 30. Rg4 {[%clk 0:02:34]}  Be7 {[%clk 0:00:47]} 31. Bc1 {[%clk 0:02:33]}  Rf8 {[%clk 0:00:47]} 32. Bxf4 {[%clk 0:02:28]}  Rxf4 {[%clk 0:00:47]} 33. Rxf4 {[%clk 0:02:28]}  exf4 {[%clk 0:00:48]} 34. Qd2 {[%clk 0:02:24]}  Qc7 {[%clk 0:00:44]} 35. h5 {[%clk 0:02:23]}  Rf8 {[%clk 0:00:43]} 36. Kf1 {[%clk 0:02:20]}  b6 {[%clk 0:00:42]} 37. Qe1 {[%clk 0:02:18]}  Qe5 {[%clk 0:00:38]} 38. Qf2 {[%clk 0:02:18]}  Rf5 {[%clk 0:00:34]} 39. Qh2 {[%clk 0:02:18]}  Bg5 {[%clk 0:00:32]} 40. Qh3 {[%clk 0:02:17]}  Kh7 {[%clk 0:00:31]} 41. Qg4 {[%clk 0:02:17]}  Kh8 {[%clk 0:00:30]} 42. Rg1 {[%clk 0:02:17]}  Kh7 {[%clk 0:00:30]} 43. Ke1 {[%clk 0:02:17]}  Kh8 {[%clk 0:00:30]} 44. Kd1 {[%clk 0:02:17]}  Kh7 {[%clk 0:00:31]} 45. Rg2 {[%clk 0:02:12]}  Kh8 {[%clk 0:00:31]} 46. Kc2 {[%clk 0:02:06]}  Kh7 {[%clk 0:00:31]} 47. Qh3 {[%clk 0:02:06]}  Kh8 {[%clk 0:00:30]} 48. Qh1 {[%clk 0:02:06]}  Kh7 {[%clk 0:00:30]} 49. Qb1 {[%clk 0:02:06]}  Qb8 {[%clk 0:00:30]} 50. b4 {[%clk 0:02:06]}  axb4 {[%clk 0:00:30]} 51. axb4 {[%clk 0:02:07]}  Qa7 {[%clk 0:00:30]} 52. Kb3 {[%clk 0:02:04]}  Rf8 {[%clk 0:00:29]} 53. Qa2 {[%clk 0:02:01]}  Qxa2+ {[%clk 0:00:28]} 54. Kxa2 {[%clk 0:02:02]}  cxb4 {[%clk 0:00:28]} 55. Kb3 {[%clk 0:02:02]}  Be7 {[%clk 0:00:25]} 56. Rg6 {[%clk 0:01:43]}  Rf5 {[%clk 0:00:23]} 57. Rxb6 {[%clk 0:01:42]}  Rxh5 {[%clk 0:00:23]} 58. Rb7 {[%clk 0:01:41]}  Bg5 {[%clk 0:00:20]} 59. c5 {[%clk 0:01:41]}  Rh1 {[%clk 0:00:18]} 60. Kb2 {[%clk 0:01:37]}  Re1 {[%clk 0:00:16]} 61. c6 {[%clk 0:01:37]}  Rxe2+ {[%clk 0:00:17]} 62. Kb3 {[%clk 0:01:37]}  Re1 {[%clk 0:00:18]} 63. Kxb4 {[%clk 0:01:36]}  Rc1 {[%clk 0:00:17]} 64. Kb5 {[%clk 0:01:35]}  Kg6 {[%clk 0:00:14]} 65. c7 {[%clk 0:01:34]}  h5 {[%clk 0:00:13]} 66. Nc5 {[%clk 0:01:34]}  Be7 {[%clk 0:00:04]} 67. Rb6+ {[%clk 0:01:31]}  Kg5 {[%clk 0:00:04]} 68. Rc6 {[%clk 0:01:31]}  Rxc5+ {[%clk 0:00:02]} 69. Rxc5+ {[%clk 0:01:31]}  Bxc5 {[%clk 0:00:03]} 70. Kxc5 {[%clk 0:01:32]}  Kh4 {[%clk 0:00:04]} 71. c8=Q {[%clk 0:01:32]}  Kg3 {[%clk 0:00:04]} 72. Kxd4 {[%clk 0:01:31]}  h4 {[%clk 0:00:04]} 73. Ke4 {[%clk 0:01:31]}  h3 {[%clk 0:00:05]} 74. Qg4+ {[%clk 0:01:30]}  Kh2 {[%clk 0:00:05]} 75. Qxf4+ {[%clk 0:01:31]}  Kh1 {[%clk 0:00:06]} 76. Qg5 {[%clk 0:01:30]}  h2 {[%clk 0:00:06]} 77. Qc1+ {[%clk 0:01:28]}  Kg2 {[%clk 0:00:06]} 78. d4 {[%clk 0:01:28]}  g5 {[%clk 0:00:06]} 79. d5 {[%clk 0:01:27]}  h1=Q {[%clk 0:00:07]} 80. Qxh1+ {[%clk 0:01:27]}  Kxh1 {[%clk 0:00:08]} 81. d6 {[%clk 0:01:27]}  g4 {[%clk 0:00:08]} 82. fxg4 {[%clk 0:01:27]} 1-0


[Site "https://www.chess.com"]

[Event "Early Titled Tuesday Blitz | February 8 2022"]
[White "Garriga Cazorla, Pere"]
[Black "Hakobyan, Aram"]
[WhiteFideId "32011601"]
[BlackFideId "13306677"]
[WhiteElo "2458"]
[BlackElo "2557"]
[Result "0-1"]
[Round "02"]
[TimeControl "180+1"]
[Date "2022.02.08"]
[WhiteClock "0:00:14"]
[BlackClock "0:00:10"]

1. d4 {[%clk 0:03:00]}  d5 {[%clk 0:02:58]} 2. c4 {[%clk 0:03:00]}  dxc4 {[%clk 0:02:59]} 3. e3 {[%clk 0:02:59]}  Nf6 {[%clk 0:02:59]} 4. Bxc4 {[%clk 0:02:59]}  e6 {[%clk 0:02:59]} 5. Nf3 {[%clk 0:02:58]}  c5 {[%clk 0:03:00]} 6. Bb3 {[%clk 0:02:58]}  Nc6 {[%clk 0:02:57]} 7. O-O {[%clk 0:02:57]}  Be7 {[%clk 0:02:57]} 8. Qe2 {[%clk 0:02:58]}  cxd4 {[%clk 0:02:46]} 9. Rd1 {[%clk 0:02:58]}  O-O {[%clk 0:02:46]} 10. exd4 {[%clk 0:02:58]}  Bd7 {[%clk 0:02:41]} 11. Nc3 {[%clk 0:02:57]}  Nb4 {[%clk 0:02:38]} 12. Bg5 {[%clk 0:02:54]}  Bc6 {[%clk 0:02:34]} 13. Ne5 {[%clk 0:02:53]}  Bd5 {[%clk 0:02:27]} 14. Nxd5 {[%clk 0:02:40]}  Nbxd5 {[%clk 0:02:27]} 15. Rac1 {[%clk 0:02:40]}  Rc8 {[%clk 0:02:14]} 16. Qf3 {[%clk 0:02:34]}  Rxc1 {[%clk 0:02:05]} 17. Rxc1 {[%clk 0:02:35]}  h6 {[%clk 0:02:05]} 18. Bxf6 {[%clk 0:02:27]}  Bxf6 {[%clk 0:02:03]} 19. Bxd5 {[%clk 0:02:27]}  exd5 {[%clk 0:02:01]} 20. g3 {[%clk 0:02:22]}  Re8 {[%clk 0:01:51]} 21. Re1 {[%clk 0:02:07]}  Qa5 {[%clk 0:01:47]} 22. Re2 {[%clk 0:01:29]}  Qxa2 {[%clk 0:01:28]} 23. Kg2 {[%clk 0:01:28]}  Bxe5 {[%clk 0:01:25]} 24. dxe5 {[%clk 0:01:26]}  Qc4 {[%clk 0:01:20]} 25. b3 {[%clk 0:01:26]}  Qd4 {[%clk 0:01:12]} 26. Qf5 {[%clk 0:01:24]}  g6 {[%clk 0:01:05]} 27. Qf6 {[%clk 0:01:17]}  Re6 {[%clk 0:01:04]} 28. Qd8+ {[%clk 0:01:16]}  Kg7 {[%clk 0:01:05]} 29. Qc7 {[%clk 0:01:15]}  Qb6 {[%clk 0:00:55]} 30. Qc3 {[%clk 0:01:12]}  d4 {[%clk 0:00:39]} 31. Qd3 {[%clk 0:01:12]}  Rc6 {[%clk 0:00:39]} 32. Qe4 {[%clk 0:00:43]}  Qxb3 {[%clk 0:00:18]} 33. Qxd4 {[%clk 0:00:43]}  Qc4 {[%clk 0:00:18]} 34. Qe3 {[%clk 0:00:39]}  Qd5+ {[%clk 0:00:19]} 35. Kh3 {[%clk 0:00:38]}  a5 {[%clk 0:00:18]} 36. f4 {[%clk 0:00:38]}  Qe6+ {[%clk 0:00:17]} 37. Kg2 {[%clk 0:00:34]}  a4 {[%clk 0:00:17]} 38. Rf2 {[%clk 0:00:33]}  Qd5+ {[%clk 0:00:14]} 39. Kh3 {[%clk 0:00:33]}  Qc5 {[%clk 0:00:11]} 40. Qf3 {[%clk 0:00:31]}  a3 {[%clk 0:00:12]} 41. f5 {[%clk 0:00:25]}  Qxe5 {[%clk 0:00:12]} 42. Qxa3 {[%clk 0:00:20]}  gxf5 {[%clk 0:00:09]} 43. Qf3 {[%clk 0:00:19]}  Rf6 {[%clk 0:00:09]} 44. Qxb7 {[%clk 0:00:18]}  f4 {[%clk 0:00:09]} 45. gxf4 {[%clk 0:00:17]}  Qh5+ {[%clk 0:00:09]} 46. Kg2 {[%clk 0:00:17]}  Rg6+ {[%clk 0:00:09]} 47. Kf1 {[%clk 0:00:14]}  Qd1# {[%clk 0:00:10]} 0-1


[Site "https://www.chess.com"]

[Event "Early Titled Tuesday Blitz | February 8 2022"]
[White "Gatterer, Florian"]
[Black "Tologon tegin, Semetei"]
[WhiteFideId "811688"]
[BlackFideId "13800574"]
[WhiteElo "2218"]
[BlackElo "2258"]
[Result "0-1"]
[Round "02"]
[TimeControl "180+1"]
[Date "2022.02.08"]
[WhiteClock "0:01:13"]
[BlackClock "0:02:16"]

1. d4 {[%clk 0:03:00]}  Nf6 {[%clk 0:02:59]} 2. Bf4 {[%clk 0:03:00]}  d5 {[%clk 0:02:58]} 3. e3 {[%clk 0:03:00]}  c5 {[%clk 0:02:58]} 4. Nf3 {[%clk 0:03:01]}  Nc6 {[%clk 0:02:58]} 5. Nbd2 {[%clk 0:03:01]}  Qb6 {[%clk 0:02:58]} 6. dxc5 {[%clk 0:02:59]}  Qxb2 {[%clk 0:02:58]} 7. Rb1 {[%clk 0:02:59]}  Qc3 {[%clk 0:02:58]} 8. Bb5 {[%clk 0:02:58]}  Qxc5 {[%clk 0:02:58]} 9. c4 {[%clk 0:02:42]}  e6 {[%clk 0:02:56]} 10. O-O {[%clk 0:02:35]}  Bd6 {[%clk 0:02:49]} 11. Nb3 {[%clk 0:02:28]}  Qa3 {[%clk 0:02:48]} 12. Nfd4 {[%clk 0:02:10]}  Bxf4 {[%clk 0:02:34]} 13. Nxc6 {[%clk 0:01:38]}  a6 {[%clk 0:02:31]} 14. Ncd4+ {[%clk 0:01:24]}  axb5 {[%clk 0:02:30]} 15. Nxb5 {[%clk 0:01:24]}  Qe7 {[%clk 0:02:29]} 16. exf4 {[%clk 0:01:24]}  O-O {[%clk 0:02:28]} 17. f5 {[%clk 0:01:24]}  dxc4 {[%clk 0:02:27]} 18. N3d4 {[%clk 0:01:17]}  e5 {[%clk 0:02:23]} 19. Nf3 {[%clk 0:01:14]}  Bxf5 {[%clk 0:02:23]} 20. Rc1 {[%clk 0:01:15]}  Bd3 {[%clk 0:02:22]} 21. Re1 {[%clk 0:01:14]}  e4 {[%clk 0:02:23]} 22. Nfd4 {[%clk 0:01:13]}  Rxa2 {[%clk 0:02:21]} 23. Nf5 {[%clk 0:01:13]}  Qc5 {[%clk 0:02:17]} 24. Nbd4 {[%clk 0:01:13]}  Rd8 {[%clk 0:02:16]} 0-1


[Site "https://www.chess.com"]

[Event "Early Titled Tuesday Blitz | February 8 2022"]
[White "Golizadeh, Asghar"]
[Black "Kornyukov, Alexey"]
[WhiteFideId "12505269"]
[BlackFideId "4150457"]
[WhiteElo "2403"]
[BlackElo "2303"]
[Result "0-1"]
[Round "02"]
[TimeControl "180+1"]
[Date "2022.02.08"]
[WhiteClock "0:00:28"]
[BlackClock "0:01:20"]

1. e4 {[%clk 0:03:00]}  c5 {[%clk 0:02:59]} 2. Nf3 {[%clk 0:03:01]}  Nc6 {[%clk 0:02:57]} 3. Bb5 {[%clk 0:02:59]}  g6 {[%clk 0:02:54]} 4. Bxc6 {[%clk 0:02:59]}  dxc6 {[%clk 0:02:53]} 5. d3 {[%clk 0:03:00]}  Bg7 {[%clk 0:02:53]} 6. h3 {[%clk 0:03:01]}  e5 {[%clk 0:02:52]} 7. Nc3 {[%clk 0:03:01]}  Ne7 {[%clk 0:02:51]} 8. Be3 {[%clk 0:03:02]}  b6 {[%clk 0:02:50]} 9. Qd2 {[%clk 0:03:03]}  h5 {[%clk 0:02:47]} 10. O-O {[%clk 0:02:58]}  Be6 {[%clk 0:02:47]} 11. Ng5 {[%clk 0:02:58]}  Qd7 {[%clk 0:02:33]} 12. a3 {[%clk 0:02:46]}  O-O {[%clk 0:02:29]} 13. f4 {[%clk 0:02:40]}  exf4 {[%clk 0:02:28]} 14. Rxf4 {[%clk 0:02:38]}  Bh6 {[%clk 0:02:24]} 15. Nxe6 {[%clk 0:02:35]}  Qxe6 {[%clk 0:02:20]} 16. Rf2 {[%clk 0:02:26]}  Bxe3 {[%clk 0:02:19]} 17. Qxe3 {[%clk 0:02:27]}  Rae8 {[%clk 0:02:16]} 18. Raf1 {[%clk 0:02:26]}  Nc8 {[%clk 0:02:13]} 19. Qg5 {[%clk 0:02:18]}  Nd6 {[%clk 0:02:10]} 20. Rf6 {[%clk 0:02:17]}  Qe7 {[%clk 0:02:03]} 21. e5 {[%clk 0:02:07]}  Nb5 {[%clk 0:02:00]} 22. e6 {[%clk 0:01:58]}  Nxc3 {[%clk 0:01:47]} 23. exf7+ {[%clk 0:01:57]}  Rxf7 {[%clk 0:01:45]} 24. Qxg6+ {[%clk 0:01:56]}  Rg7 {[%clk 0:01:45]} 25. Qxh5 {[%clk 0:01:34]}  Ne2+ {[%clk 0:01:43]} 26. Kh2 {[%clk 0:01:25]}  Qc7+ {[%clk 0:01:39]} 27. R1f4 {[%clk 0:01:14]}  Qb8 {[%clk 0:01:24]} 28. Rh6 {[%clk 0:00:31]}  Qxf4+ {[%clk 0:01:22]} 29. Kh1 {[%clk 0:00:30]}  Ng3+ {[%clk 0:01:21]} 30. Kh2 {[%clk 0:00:30]}  Nxh5+ {[%clk 0:01:21]} 31. g3 {[%clk 0:00:28]}  Re2+ {[%clk 0:01:20]} 32. Kh1 {[%clk 0:00:28]}  Qf3+ {[%clk 0:01:20]} 33. Kg1 {[%clk 0:00:28]}  Qg2# {[%clk 0:01:20]} 0-1


[Site "https://www.chess.com"]

[Event "Early Titled Tuesday Blitz | February 8 2022"]
[White "Guliev, Logman"]
[Black "Golsta, Madara"]
[WhiteFideId "13400061"]
[BlackFideId "11607386"]
[WhiteElo "2128"]
[BlackElo "1997"]
[Result "1-0"]
[Round "02"]
[TimeControl "180+1"]
[Date "2022.02.08"]
[WhiteClock "0:01:22"]
[BlackClock "0:00:02"]

1. e4 {[%clk 0:03:00]}  c5 {[%clk 0:02:58]} 2. Nf3 {[%clk 0:03:00]}  d6 {[%clk 0:02:57]} 3. d4 {[%clk 0:03:00]}  cxd4 {[%clk 0:02:58]} 4. Nxd4 {[%clk 0:03:01]}  Nf6 {[%clk 0:02:57]} 5. Nc3 {[%clk 0:03:01]}  g6 {[%clk 0:02:56]} 6. Be3 {[%clk 0:02:59]}  Bg7 {[%clk 0:02:55]} 7. f3 {[%clk 0:02:59]}  Nc6 {[%clk 0:02:55]} 8. Qd2 {[%clk 0:03:00]}  O-O {[%clk 0:02:54]} 9. Bc4 {[%clk 0:03:00]}  Bd7 {[%clk 0:02:50]} 10. O-O-O {[%clk 0:03:01]}  Rc8 {[%clk 0:02:46]} 11. Bb3 {[%clk 0:03:00]}  Ne5 {[%clk 0:02:46]} 12. h4 {[%clk 0:02:59]}  h5 {[%clk 0:02:45]} 13. Bg5 {[%clk 0:02:59]}  Rc5 {[%clk 0:02:44]} 14. Kb1 {[%clk 0:02:55]}  b5 {[%clk 0:02:42]} 15. g4 {[%clk 0:02:50]}  Nc4 {[%clk 0:01:56]} 16. Qd3 {[%clk 0:02:46]}  Qc8 {[%clk 0:01:34]} 17. Bxf6 {[%clk 0:02:43]}  Bxf6 {[%clk 0:01:33]} 18. Nd5 {[%clk 0:02:44]}  Be6 {[%clk 0:00:41]} 19. Nxf6+ {[%clk 0:02:39]}  exf6 {[%clk 0:00:42]} 20. gxh5 {[%clk 0:02:38]}  Rxh5 {[%clk 0:00:40]} 21. f4 {[%clk 0:02:33]}  d5 {[%clk 0:00:33]} 22. Nxe6 {[%clk 0:02:24]}  fxe6 {[%clk 0:00:32]} 23. exd5 {[%clk 0:02:23]}  Kh7 {[%clk 0:00:25]} 24. dxe6 {[%clk 0:02:20]}  Qxe6 {[%clk 0:00:25]} 25. Rhe1 {[%clk 0:02:14]}  Qg4 {[%clk 0:00:12]} 26. Rg1 {[%clk 0:01:52]}  Qf5 {[%clk 0:00:11]} 27. Bxc4 {[%clk 0:01:49]}  bxc4 {[%clk 0:00:11]} 28. Qxc4 {[%clk 0:01:46]}  Rxh4 {[%clk 0:00:10]} 29. Rh1 {[%clk 0:01:42]}  Rh5 {[%clk 0:00:09]} 30. Qc7+ {[%clk 0:01:35]}  Kg8 {[%clk 0:00:08]} 31. Rhg1 {[%clk 0:01:29]}  Rc8 {[%clk 0:00:07]} 32. Rxg6+ {[%clk 0:01:25]}  Qxg6 {[%clk 0:00:02]} 33. Qxc8+ {[%clk 0:01:24]}  Kh7 {[%clk 0:00:02]} 34. Rd7+ {[%clk 0:01:22]} 1-0


[Site "https://www.chess.com"]

[Event "Early Titled Tuesday Blitz | February 8 2022"]
[White "Gurevich, Dmitry"]
[Black "Kazarian, Anna-Maja"]
[WhiteFideId "2000407"]
[BlackFideId "1033689"]
[WhiteElo "2506"]
[BlackElo "2004"]
[Result "0-1"]
[Round "02"]
[TimeControl "180+1"]
[Date "2022.02.08"]
[WhiteClock "0:00:10"]
[BlackClock "0:00:03"]

1. d4 {[%clk 0:03:00]}  d5 {[%clk 0:02:59]} 2. c4 {[%clk 0:03:00]}  e6 {[%clk 0:02:59]} 3. Nc3 {[%clk 0:02:59]}  Nf6 {[%clk 0:03:00]} 4. Nf3 {[%clk 0:02:59]}  Be7 {[%clk 0:03:00]} 5. g3 {[%clk 0:02:59]}  O-O {[%clk 0:03:00]} 6. Bg2 {[%clk 0:02:59]}  c6 {[%clk 0:03:00]} 7. O-O {[%clk 0:02:59]}  Nbd7 {[%clk 0:02:59]} 8. Qb3 {[%clk 0:02:51]}  b6 {[%clk 0:02:55]} 9. Rd1 {[%clk 0:02:50]}  Bb7 {[%clk 0:02:54]} 10. Bf4 {[%clk 0:02:49]}  c5 {[%clk 0:02:47]} 11. dxc5 {[%clk 0:02:38]}  Nxc5 {[%clk 0:02:45]} 12. Qc2 {[%clk 0:02:38]}  Nfe4 {[%clk 0:02:41]} 13. cxd5 {[%clk 0:02:29]}  exd5 {[%clk 0:02:22]} 14. Nxe4 {[%clk 0:02:28]}  Nxe4 {[%clk 0:02:16]} 15. Nd4 {[%clk 0:02:27]}  Rc8 {[%clk 0:02:13]} 16. Qb3 {[%clk 0:02:19]}  Qe8 {[%clk 0:01:59]} 17. Nf5 {[%clk 0:02:07]}  Bc5 {[%clk 0:01:55]} 18. Be3 {[%clk 0:02:05]}  Bxe3 {[%clk 0:01:50]} 19. Nxe3 {[%clk 0:02:03]}  Qe5 {[%clk 0:01:43]} 20. Nxd5 {[%clk 0:01:54]}  Nc5 {[%clk 0:01:29]} 21. Qe3 {[%clk 0:01:46]}  Qxe3 {[%clk 0:01:06]} 22. Nxe3 {[%clk 0:01:45]}  Bxg2 {[%clk 0:00:57]} 23. Kxg2 {[%clk 0:01:44]}  Rfd8 {[%clk 0:00:56]} 24. Rxd8+ {[%clk 0:01:44]}  Rxd8 {[%clk 0:00:57]} 25. Rd1 {[%clk 0:01:43]}  Rc8 {[%clk 0:00:52]} 26. Rd2 {[%clk 0:01:39]}  g6 {[%clk 0:00:49]} 27. Nd5 {[%clk 0:01:38]}  Kg7 {[%clk 0:00:48]} 28. f3 {[%clk 0:01:34]}  f5 {[%clk 0:00:42]} 29. Nf4 {[%clk 0:01:31]}  Kf7 {[%clk 0:00:38]} 30. h4 {[%clk 0:01:30]}  h6 {[%clk 0:00:36]} 31. Kf2 {[%clk 0:01:27]}  g5 {[%clk 0:00:36]} 32. Nd3 {[%clk 0:01:15]}  Nxd3+ {[%clk 0:00:19]} 33. Rxd3 {[%clk 0:01:14]}  Rc7 {[%clk 0:00:19]} 34. hxg5 {[%clk 0:01:11]}  hxg5 {[%clk 0:00:19]} 35. Rc3 {[%clk 0:01:09]}  Rd7 {[%clk 0:00:17]} 36. Ke1 {[%clk 0:01:07]}  Kf6 {[%clk 0:00:13]} 37. Rd3 {[%clk 0:01:06]}  Rc7 {[%clk 0:00:11]} 38. Kd2 {[%clk 0:01:06]}  Ke5 {[%clk 0:00:12]} 39. e3 {[%clk 0:00:53]}  Rh7 {[%clk 0:00:10]} 40. f4+ {[%clk 0:00:49]}  gxf4 {[%clk 0:00:09]} 41. gxf4+ {[%clk 0:00:46]}  Ke4 {[%clk 0:00:06]} 42. Rd4+ {[%clk 0:00:44]}  Kf3 {[%clk 0:00:06]} 43. Kd3 {[%clk 0:00:27]}  Re7 {[%clk 0:00:05]} 44. Rd5 {[%clk 0:00:21]}  Rxe3+ {[%clk 0:00:05]} 45. Kd2 {[%clk 0:00:20]}  Kxf4 {[%clk 0:00:03]} 46. Rxf5+ {[%clk 0:00:18]}  Kxf5 {[%clk 0:00:03]} 47. Kxe3 {[%clk 0:00:18]}  Ke5 {[%clk 0:00:04]} 48. Kd3 {[%clk 0:00:18]}  Kd5 {[%clk 0:00:04]} 49. Kc3 {[%clk 0:00:19]}  Kc5 {[%clk 0:00:05]} 50. b3 {[%clk 0:00:18]}  a5 {[%clk 0:00:02]} 51. a3 {[%clk 0:00:17]}  b5 {[%clk 0:00:02]} 52. Kd3 {[%clk 0:00:16]}  Kd5 {[%clk 0:00:03]} 53. Ke3 {[%clk 0:00:16]}  Ke5 {[%clk 0:00:03]} 54. b4 {[%clk 0:00:15]}  a4 {[%clk 0:00:02]} 55. Kd3 {[%clk 0:00:13]}  Kd5 {[%clk 0:00:02]} 56. Kd2 {[%clk 0:00:12]}  Kd4 {[%clk 0:00:02]} 57. Kc2 {[%clk 0:00:12]}  Kc4 {[%clk 0:00:03]} 58. Kb2 {[%clk 0:00:11]}  Kd3 {[%clk 0:00:03]} 59. Ka2 {[%clk 0:00:10]}  Kc3 {[%clk 0:00:03]} 0-1


[Site "https://www.chess.com"]

[Event "Early Titled Tuesday Blitz | February 8 2022"]
[White "Dronavalli, Harika"]
[Black "Paravyan, David"]
[WhiteFideId "5015197"]
[BlackFideId "4194985"]
[WhiteElo "2382"]
[BlackElo "2569"]
[Result "1/2-1/2"]
[Round "02"]
[TimeControl "180+1"]
[Date "2022.02.08"]
[WhiteClock "0:01:06"]
[BlackClock "0:01:24"]

1. d4 {[%clk 0:03:00]}  Nf6 {[%clk 0:02:59]} 2. c4 {[%clk 0:03:00]}  g6 {[%clk 0:02:59]} 3. g3 {[%clk 0:03:00]}  d5 {[%clk 0:02:52]} 4. cxd5 {[%clk 0:02:57]}  c6 {[%clk 0:02:53]} 5. Nf3 {[%clk 0:02:54]}  cxd5 {[%clk 0:02:52]} 6. Ne5 {[%clk 0:02:53]}  Bg7 {[%clk 0:02:52]} 7. Bg2 {[%clk 0:02:54]}  O-O {[%clk 0:02:52]} 8. Nc3 {[%clk 0:02:52]}  Nc6 {[%clk 0:02:49]} 9. O-O {[%clk 0:02:52]}  Bf5 {[%clk 0:02:49]} 10. Bf4 {[%clk 0:02:41]}  Ne4 {[%clk 0:02:42]} 11. Nxc6 {[%clk 0:02:37]}  bxc6 {[%clk 0:02:43]} 12. Rc1 {[%clk 0:02:35]}  Nxc3 {[%clk 0:02:29]} 13. Rxc3 {[%clk 0:02:31]}  Qb6 {[%clk 0:02:29]} 14. Be5 {[%clk 0:02:23]}  Bxe5 {[%clk 0:02:17]} 15. dxe5 {[%clk 0:02:23]}  Qxb2 {[%clk 0:02:18]} 16. Rxc6 {[%clk 0:02:16]}  Qxe5 {[%clk 0:02:18]} 17. Qxd5 {[%clk 0:02:09]}  Qxe2 {[%clk 0:02:07]} 18. Bf3 {[%clk 0:01:57]}  Qd3 {[%clk 0:02:05]} 19. Qxd3 {[%clk 0:01:47]}  Bxd3 {[%clk 0:02:06]} 20. Rd1 {[%clk 0:01:47]}  Rad8 {[%clk 0:02:05]} 21. Rc7 {[%clk 0:01:48]}  a5 {[%clk 0:01:52]} 22. Rxe7 {[%clk 0:01:33]}  Bc4 {[%clk 0:01:52]} 23. Rxd8 {[%clk 0:01:25]}  Rxd8 {[%clk 0:01:53]} 24. Ra7 {[%clk 0:01:26]}  Re8 {[%clk 0:01:45]} 25. h4 {[%clk 0:01:21]}  Re1+ {[%clk 0:01:39]} 26. Kg2 {[%clk 0:01:19]}  Bf1+ {[%clk 0:01:30]} 27. Kh2 {[%clk 0:01:19]}  Re5 {[%clk 0:01:31]} 28. Bd1 {[%clk 0:01:06]}  Bc4 {[%clk 0:01:27]} 29. Bb3 {[%clk 0:01:06]}  Bxb3 {[%clk 0:01:26]} 30. axb3 {[%clk 0:01:07]}  Rb5 {[%clk 0:01:26]} 31. Kg2 {[%clk 0:01:07]}  h5 {[%clk 0:01:26]} 32. Ra6 {[%clk 0:01:07]}  Kf8 {[%clk 0:01:24]} 33. Kf1 {[%clk 0:01:07]}  Ke7 {[%clk 0:01:25]} 34. Ke2 {[%clk 0:01:07]}  Kd7 {[%clk 0:01:25]} 35. Kd2 {[%clk 0:01:06]}  Rxb3 {[%clk 0:01:25]} 36. Rxa5 {[%clk 0:01:06]}  Ke7 {[%clk 0:01:24]} 37. Ke2 {[%clk 0:01:06]} 1/2-1/2


[Site "https://www.chess.com"]